fUSD/lending_fUSD_20251014
["ID","MTS","AMOUNT","RATE_DAILY","PERIOD"]
[391290334,1760470273513,-940.64,0.00016712,2]
[391290335,1760470273523,-151.0,0.00016712,2]
[391290336,1760470273532,-530.21,0.00016712,2]
[391290337,1760470273542,-2813.0,0.00016712,2]
[391290338,1760470273551,-1663.66,0.00016712,2]
[391290339,1760470273561,-500.0,0.00016712,2]
[391290340,1760470273570,-151.0,0.00016712,2]
[391290341,1760470273579,-615.66,0.00016712,2]
[391290342,1760470273588,-1842.21,0.00016712,2]
[391290343,1760470273598,-774.72,0.00016712,2]
[391290344,1760470273608,-1279.0,0.00016712,2]
[391290345,1760470273619,-151.0,0.00016712,2]
[391290346,1760470273628,-500.0,0.00016712,2]
[391290347,1760470273637,-547.74946164,0.00016726,2]
[391290348,1760470273646,-1425.0,0.00016732,2]
[391290349,1760470273655,-1425.0,0.00016738,2]
[391290350,1760470273665,-150.0,0.00016766,2]
[391290351,1760470273675,-150.0,0.00016766,2]
[391290352,1760470273684,-150.0,0.00016766,2]
[391290353,1760470273694,-500.0,0.00016773,2]
[391290354,1760470273703,-500.0,0.00016773,2]
[391290355,1760470273712,-500.77155323,0.00016773,2]
[391290356,1760470273722,-500.0,0.00016773,2]
[391290357,1760470273731,-500.0,0.00016773,2]
[391290358,1760470273741,-500.0,0.00016773,2]
[391290359,1760470273750,-500.0,0.00016773,2]
[391290360,1760470273760,-500.0,0.00016773,2]
[391290361,1760470273770,-500.0,0.00016773,2]
[391290362,1760470273780,-500.0,0.00016773,2]
[391290363,1760470273790,-203.87262632,0.00016773,2]
[391290364,1760470273800,-500.0,0.00016773,2]
[391290365,1760470273809,-500.37626061,0.00016773,2]
[391290366,1760470273819,-574.11666166,0.00016773,2]
[391290367,1760470273829,-500.0,0.00016773,2]
[391290368,1760470273838,-500.73661914,0.00016773,2]
[391290369,1760470273849,-500.0,0.00016773,2]
[391290370,1760470273858,-500.0,0.00016773,2]
[391290371,1760470273869,-500.0,0.00016773,2]
[391290372,1760470273879,-163.52606481,0.00016773,2]
[391290373,1760470273888,-531.28681302,0.00016773,2]
[391290374,1760470273898,-162.63474861,0.00016773,2]
[391290375,1760470273908,-500.0,0.00016773,2]
[391290376,1760470273925,-217.47768549,0.00016773,2]
[391290377,1760470273935,-278.78568649,0.00016773,2]
[391290378,1760470273946,-166.56753646,0.00016773,2]
[391290379,1760470273956,-500.0,0.00016773,2]
[391290380,1760470273965,-500.53806314,0.00016773,2]
[391290381,1760470273975,-500.0,0.00016773,2]
[391290382,1760470273985,-324.70653124,0.00016773,2]
[391290383,1760470273994,-500.0,0.00016773,2]
[391290384,1760470274004,-500.0,0.00016773,2]
[391290385,1760470274014,-500.0,0.00016773,2]
[391290386,1760470274023,-369.25300041,0.00016773,2]
[391290387,1760470274033,-197.0,0.00016776,2]
[391290388,1760470274042,-3716.18591676,0.00016778,2]
[391290389,1760470274052,-977.0,0.00016791,2]
[391290390,1760470274061,-19799.51385274,0.000168,2]
[391290391,1760470274071,-200.0,0.00016821,2]
[391290392,1760470274081,-150.0,0.00016821,2]
[391290393,1760470274090,-150.0,0.00016821,2]
[391290394,1760470274100,-966.22474038,0.00016822,2]
[391290395,1760470274110,-1399.97216691,0.00016822,2]
[391290396,1760470274120,-438.0,0.00016852,2]
[391290397,1760470274130,-3716.18591676,0.00016873,2]
[391290398,1760470274140,-977.0,0.00016874,2]
[391290399,1760470274150,-200.0,0.00016875,2]
[391290400,1760470274159,-150.0,0.00016875,2]
[391290401,1760470274169,-1600.0,0.00016897,2]
[391290402,1760470274179,-197.0,0.00016902,2]
[391290403,1760470274189,-197.0,0.00016919,2]
[391290404,1760470274199,-240.0,0.0001693,2]
[391290405,1760470274209,-433.0,0.00016932,2]
[391290406,1760470274218,-977.0,0.00016934,2]
[391290407,1760470274227,-547.74946164,0.00016939,2]
[391290408,1760470274237,-3716.18591676,0.00016969,2]
[391290409,1760470274247,-150.10076072,0.00016973,2]
[391290410,1760470274257,-300.0,0.00016985,2]
[391290411,1760470274266,-300.0,0.00016985,2]
[391290412,1760470274276,-300.0,0.00016985,2]
[391290413,1760470274286,-300.0,0.00016985,2]
[391290414,1760470274295,-300.0,0.00016985,2]
[391290415,1760470274306,-300.0,0.00016985,2]
[391290416,1760470274315,-300.0,0.00016985,2]
[391290417,1760470274326,-300.0,0.00016985,2]
[391290418,1760470274335,-300.0,0.00016985,2]
[391290419,1760470274345,-356.002177,0.00016986,2]
[391290420,1760470274355,-270.138066,0.00016986,2]
[391290421,1760470274365,-270.138066,0.00016986,2]
[391290422,1760470274374,-216.820464,0.00016986,2]
[391290423,1760470274386,-3716.67029,0.00016986,2]
[391290424,1760470274397,-1954.656882,0.00016986,2]
[391290425,1760470274407,-3522.293525,0.00016986,2]
[391290426,1760470274418,-1016.04,0.00016986,2]
[391290427,1760470274430,-1081.97,0.00016986,2]
[391290428,1760470274440,-1270.21,0.00016986,2]
[391290429,1760470274451,-1217.28,0.00016986,2]
[391290430,1760470274462,-1480.48,0.00016986,2]
[391290431,1760470274473,-500.0,0.00016986,2]
[391290432,1760470274483,-1753.61,0.00016986,2]
[391290433,1760470274493,-500.0,0.00016986,2]
[391290434,1760470274504,-500.0,0.00016986,2]
[391290435,1760470274513,-1130.79,0.00016986,2]
[391290436,1760470274523,-535.61,0.00016986,2]
[391290437,1760470274532,-500.0,0.00016986,2]
[391290438,1760470274542,-1367.18,0.00016986,2]
[391290439,1760470274551,-3297.12,0.00016986,2]
[391290440,1760470274562,-898.87,0.00016986,2]
[391290441,1760470274571,-661.15,0.00016986,2]
[391290442,1760470274581,-552.91,0.00016986,2]
[391290443,1760470274591,-500.0,0.00016986,2]
[391290444,1760470274601,-1410.07,0.00016986,2]
[391290445,1760470274611,-500.0,0.00016986,2]
[391290446,1760470274621,-500.0,0.00016986,2]
[391290447,1760470274631,-703.39,0.00016986,2]
[391290448,1760470274641,-1557.16,0.00016986,2]
[391290449,1760470274650,-1047.56,0.00016986,2]
[391290450,1760470274660,-600.5,0.00016986,2]
[391290451,1760470274670,-500.0,0.00016986,2]
[391290452,1760470274680,-891.55,0.00016986,2]
[391290453,1760470274690,-645.01,0.00016986,2]
[391290454,1760470274700,-500.0,0.00016986,2]
[391290455,1760470274710,-902.56,0.00016986,2]
[391290456,1760470274720,-500.0,0.00016986,2]
[391290457,1760470274729,-500.0,0.00016986,2]
[391290458,1760470274740,-1136.29,0.00016986,2]
[391290459,1760470274750,-500.0,0.00016986,2]
[391290460,1760470274760,-500.0,0.00016986,2]
[391290461,1760470274769,-500.0,0.00016986,2]
[391290462,1760470274780,-500.0,0.00016986,2]
[391290463,1760470274789,-500.0,0.00016986,2]
[391290464,1760470274799,-1473.97,0.00016986,2]
[391290465,1760470274809,-500.0,0.00016986,2]
[391290466,1760470274818,-1334.03,0.00016986,2]
[391290467,1760470274828,-500.0,0.00016986,2]
[391290468,1760470274838,-1490.74,0.00016986,2]
[391290469,1760470274847,-500.0,0.00016986,2]
[391290470,1760470274857,-500.0,0.00016986,2]
[391290471,1760470274868,-500.0,0.00016986,2]
[391290472,1760470274878,-500.0,0.00016986,2]
[391290473,1760470274888,-789.35,0.00016986,2]
[391290474,1760470274898,-2159.89,0.00016986,2]
[391290475,1760470274907,-612.88,0.00016986,2]
[391290476,1760470274917,-700.37,0.00016986,2]
[391290477,1760470274927,-206.63,0.00016986,2]
[391290478,1760470274936,-883.13,0.00016986,2]
[391290479,1760470274946,-883.13,0.00016986,2]
[391290480,1760470274955,-500.0,0.00016986,2]
[391290481,1760470274965,-960.44,0.00016986,2]
[391290482,1760470274975,-840.38,0.00016986,2]
[391290483,1760470274984,-1041.65,0.00016986,2]
[391290484,1760470274993,-585.66,0.00016986,2]
[391290485,1760470275003,-500.0,0.00016986,2]
[391290486,1760470275012,-500.0,0.00016986,2]
[391290487,1760470275023,-1639.89,0.00016986,2]
[391290488,1760470275033,-500.0,0.00016986,2]
[391290489,1760470275043,-947.54,0.00016986,2]
[391290490,1760470275052,-500.0,0.00016986,2]
[391290491,1760470275063,-500.0,0.00016986,2]
[391290492,1760470275073,-1563.92,0.00016986,2]
[391290493,1760470275082,-500.0,0.00016986,2]
[391290494,1760470275092,-1905.46,0.00016986,2]
[391290495,1760470275101,-849.33,0.00016986,2]
[391290496,1760470275111,-1251.39,0.00016986,2]
[391290497,1760470275122,-749.46,0.00016986,2]
[391290498,1760470275131,-1114.36,0.00016986,2]
[391290499,1760470275141,-500.0,0.00016986,2]
[391290500,1760470275151,-881.45,0.00016986,2]
[391290501,1760470275170,-500.0,0.00016986,2]
[391290502,1760470275179,-500.0,0.00016986,2]
[391290503,1760470275189,-1652.81,0.00016986,2]
[391290504,1760470275199,-1695.89,0.00016986,2]
[391290505,1760470275208,-427.11273014,0.00016986,2]
[391290506,1760470275218,-500.0,0.00016986,2]
[391290507,1760470275227,-500.0,0.00016986,2]
[391290508,1760470275237,-500.0,0.00016986,2]
[391290509,1760470275256,-154.861262,0.00016986,2]
[391290510,1760470275277,-500.0,0.00016986,2]
[391290511,1760470275290,-153.143197,0.00016986,2]
[391290512,1760470275300,-500.0,0.00016986,2]
[391290513,1760470275310,-150.358223,0.00016986,2]
[391290514,1760470275321,-1299.76,0.00016986,2]
[391290515,1760470275331,-500.0,0.00016986,2]
[391290516,1760470275340,-500.0,0.00016986,2]
[391290517,1760470275350,-500.0,0.00016986,2]
[391290518,1760470275359,-582.18094456,0.00016986,2]
[391290519,1760470275370,-500.0,0.00016986,2]
[391290520,1760470275380,-386.58143326,0.00016986,2]
[391290521,1760470275395,-500.0,0.00016986,2]
[391290522,1760470275404,-500.0,0.00016986,2]
[391290523,1760470275414,-500.0,0.00016986,2]
[391290524,1760470275423,-588.97,0.00016986,2]
[391290525,1760470275434,-500.0,0.00016986,2]
[391290526,1760470275444,-500.0,0.00016986,2]
[391290527,1760470275454,-500.0,0.00016986,2]
[391290528,1760470275465,-500.0,0.00016986,2]
[391290529,1760470275474,-500.0,0.00016986,2]
[391290530,1760470275484,-607.21066886,0.00016986,2]
[391290531,1760470275493,-500.0,0.00016986,2]
[391290532,1760470275504,-500.0,0.00016986,2]
[391290533,1760470275514,-500.0,0.00016986,2]
[391290534,1760470275523,-500.0,0.00016986,2]
[391290535,1760470275533,-1947.9,0.00016986,2]
[391290536,1760470275542,-1148.28,0.00016986,2]
[391290537,1760470275552,-500.0,0.00016986,2]
[391290538,1760470275562,-500.0,0.00016986,2]
[391290539,1760470275571,-500.0,0.00016986,2]
[391290540,1760470275581,-1967.11,0.00016986,2]
[391290541,1760470275591,-500.0,0.00016986,2]
[391290542,1760470275600,-1890.01,0.00016986,2]
[391290543,1760470275610,-500.0,0.00016986,2]
[391290544,1760470275620,-500.0,0.00016986,2]
[391290545,1760470275629,-500.0,0.00016986,2]
[391290546,1760470275639,-500.0,0.00016986,2]
[391290547,1760470275648,-969.98,0.00016986,2]
[391290548,1760470275658,-500.0,0.00016986,2]
[391290549,1760470275667,-609.72,0.00016986,2]
[391290550,1760470275677,-500.0,0.00016986,2]
[391290551,1760470275686,-1095.05,0.00016986,2]
[391290552,1760470275696,-500.0,0.00016986,2]
[391290553,1760470275705,-500.0,0.00016986,2]
[391290554,1760470275715,-1190.56,0.00016986,2]
[391290555,1760470275725,-500.0,0.00016986,2]
[391290556,1760470275734,-500.0,0.00016986,2]
[391290557,1760470275744,-500.0,0.00016986,2]
[391290558,1760470275754,-500.0,0.00016986,2]
[391290559,1760470275764,-500.0,0.00016986,2]
[391290560,1760470275774,-500.0,0.00016986,2]
[391290561,1760470275784,-1925.21,0.00016986,2]
[391290562,1760470275793,-500.0,0.00016986,2]
[391290563,1760470275803,-500.0,0.00016986,2]
[391290564,1760470275813,-899.42,0.00016986,2]
[391290565,1760470275822,-500.0,0.00016986,2]
[391290566,1760470276101,-500.0,0.00016986,2]
[391290567,1760470276111,-500.0,0.00016986,2]
[391290568,1760470276121,-500.0,0.00016986,2]
[391290569,1760470276131,-500.0,0.00016986,2]
[391290570,1760470276140,-1851.66,0.00016986,2]
[391290571,1760470276149,-500.0,0.00016986,2]
[391290572,1760470276158,-500.0,0.00016986,2]
[391290573,1760470276168,-1662.99,0.00016986,2]
[391290574,1760470276177,-500.0,0.00016986,2]
[391290575,1760470276188,-500.0,0.00016986,2]
[391290576,1760470276199,-500.0,0.00016986,2]
[391290577,1760470276209,-500.0,0.00016986,2]
[391290578,1760470276219,-500.0,0.00016986,2]
[391290579,1760470276228,-643.38,0.00016986,2]
[391290580,1760470276238,-500.0,0.00016986,2]
[391290581,1760470276248,-500.0,0.00016986,2]
[391290582,1760470276258,-500.0,0.00016986,2]
[391290583,1760470276267,-500.0,0.00016986,2]
[391290584,1760470276277,-603.25972224,0.00016986,2]
[391290585,1760470276287,-545.59,0.00016986,2]
[391290586,1760470276296,-500.0,0.00016986,2]
[391290587,1760470276306,-500.0,0.00016986,2]
[391290588,1760470276316,-1563.54,0.00016986,2]
[391290589,1760470276325,-500.0,0.00016986,2]
[391290590,1760470276335,-500.0,0.00016986,2]
[391290591,1760470276345,-500.0,0.00016986,2]
[391290592,1760470276354,-500.0,0.00016986,2]
[391290593,1760470276364,-2066.64,0.00016986,2]
[391290594,1760470276374,-639.57,0.00016986,2]
[391290595,1760470276384,-500.0,0.00016986,2]
[391290596,1760470276396,-1135.3,0.00016986,2]
[391290597,1760470276406,-500.0,0.00016986,2]
[391290598,1760470276415,-1788.4,0.00016986,2]
[391290599,1760470276424,-500.0,0.00016986,2]
[391290600,1760470276434,-553.21,0.00016986,2]
[391290601,1760470276443,-574.43,0.00016986,2]
[391290602,1760470276453,-500.0,0.00016986,2]
[391290603,1760470276464,-500.0,0.00016986,2]
[391290604,1760470276473,-500.0,0.00016986,2]
[391290605,1760470276482,-500.0,0.00016986,2]
[391290606,1760470276491,-510.64,0.00016986,2]
[391290607,1760470276502,-500.0,0.00016986,2]
[391290608,1760470276511,-789.67,0.00016986,2]
[391290609,1760470276520,-672.5,0.00016986,2]
[391290610,1760470276530,-620.68,0.00016986,2]
[391290611,1760470276539,-1162.65,0.00016986,2]
[391290612,1760470276549,-500.0,0.00016986,2]
[391290613,1760470276558,-500.0,0.00016986,2]
[391290614,1760470276567,-500.0,0.00016986,2]
[391290615,1760470276576,-585.68,0.00016986,2]
[391290616,1760470276586,-500.0,0.00016986,2]
[391290617,1760470276595,-500.0,0.00016986,2]
[391290618,1760470276604,-631.45,0.00016986,2]
[391290619,1760470276613,-500.0,0.00016986,2]
[391290620,1760470276624,-500.0,0.00016986,2]
[391290621,1760470276633,-1167.34,0.00016986,2]
[391290622,1760470276642,-500.0,0.00016986,2]
[391290623,1760470276651,-500.0,0.00016986,2]
[391290624,1760470276660,-1847.92,0.00016986,2]
[391290625,1760470276669,-500.0,0.00016986,2]
[391290626,1760470276679,-500.0,0.00016986,2]
[391290627,1760470276688,-500.0,0.00016986,2]
[391290628,1760470276697,-1532.08,0.00016986,2]
[391290629,1760470276706,-500.0,0.00016986,2]
[391290630,1760470276715,-789.69,0.00016986,2]
[391290631,1760470276725,-500.0,0.00016986,2]
[391290632,1760470276734,-1328.02,0.00016986,2]
[391290633,1760470276743,-1654.08,0.00016986,2]
[391290634,1760470276753,-500.0,0.00016986,2]
[391290635,1760470276763,-906.08,0.00016986,2]
[391290636,1760470276772,-500.0,0.00016986,2]
[391290637,1760470276781,-500.0,0.00016986,2]
[391290638,1760470276790,-634.56,0.00016986,2]
[391290639,1760470276800,-538.12,0.00016986,2]
[391290640,1760470276810,-500.0,0.00016986,2]
[391290641,1760470276821,-500.0,0.00016986,2]
[391290642,1760470276831,-1061.26,0.00016986,2]
[391290643,1760470276841,-500.0,0.00016986,2]
[391290644,1760470276851,-500.0,0.00016986,2]
[391290645,1760470276861,-500.0,0.00016986,2]
[391290646,1760470276872,-500.0,0.00016986,2]
[391290647,1760470276882,-618.58,0.00016986,2]
[391290648,1760470276893,-500.0,0.00016986,2]
[391290649,1760470276903,-500.0,0.00016986,2]
[391290650,1760470276913,-500.0,0.00016986,2]
[391290651,1760470276922,-500.0,0.00016986,2]
[391290652,1760470276932,-500.0,0.00016986,2]
[391290653,1760470276942,-500.0,0.00016986,2]
[391290654,1760470276951,-500.0,0.00016986,2]
[391290655,1760470276961,-1128.82,0.00016986,2]
[391290656,1760470276971,-500.0,0.00016986,2]
[391290657,1760470276980,-669.16,0.00016986,2]
[391290658,1760470276990,-500.0,0.00016986,2]
[391290659,1760470277000,-500.0,0.00016986,2]
[391290660,1760470277011,-500.0,0.00016986,2]
[391290661,1760470277021,-504.62,0.00016986,2]
[391290662,1760470277031,-550.48,0.00016986,2]
[391290663,1760470277040,-1443.49,0.00016986,2]
[391290664,1760470277051,-500.0,0.00016986,2]
[391290665,1760470277062,-500.0,0.00016986,2]
[391290666,1760470277072,-500.0,0.00016986,2]
[391290667,1760470277082,-1481.44,0.00016986,2]
[391290668,1760470277093,-500.0,0.00016986,2]
[391290669,1760470277103,-1472.05,0.00016986,2]
[391290670,1760470277112,-500.0,0.00016986,2]
[391290671,1760470277123,-643.96985179,0.00016986,2]
[391290672,1760470277132,-1579.46,0.00016986,2]
[391290673,1760470277142,-500.0,0.00016986,2]
[391290674,1760470277152,-500.0,0.00016986,2]
[391290675,1760470277162,-536.91,0.00016986,2]
[391290676,1760470277176,-1231.16,0.00016986,2]
[391290677,1760470277187,-976.88,0.00016986,2]
[391290678,1760470277197,-500.0,0.00016986,2]
[391290679,1760470277208,-700.83,0.00016986,2]
[391290680,1760470277218,-500.0,0.00016986,2]
[391290681,1760470277230,-500.0,0.00016986,2]
[391290682,1760470277240,-500.0,0.00016986,2]
[391290683,1760470277251,-668.16,0.00016986,2]
[391290684,1760470277261,-578.51,0.00016986,2]
[391290685,1760470277271,-779.53,0.00016986,2]
[391290686,1760470277282,-500.0,0.00016986,2]
[391290687,1760470277292,-500.0,0.00016986,2]
[391290688,1760470277302,-500.0,0.00016986,2]
[391290689,1760470277312,-808.76,0.00016986,2]
[391290690,1760470277323,-500.0,0.00016986,2]
[391290691,1760470277334,-500.0,0.00016986,2]
[391290692,1760470277346,-642.78,0.00016986,2]
[391290693,1760470277356,-840.69,0.00016986,2]
[391290694,1760470277366,-500.0,0.00016986,2]
[391290695,1760470277376,-500.0,0.00016986,2]
[391290696,1760470277389,-511.02,0.00016986,2]
[391290697,1760470277402,-796.21,0.00016986,2]
[391290698,1760470277412,-500.0,0.00016986,2]
[391290699,1760470277424,-1118.93,0.00016986,2]
[391290700,1760470277435,-868.41,0.00016986,2]
[391290701,1760470277446,-500.0,0.00016986,2]
[391290702,1760470277457,-500.0,0.00016986,2]
[391290703,1760470277469,-500.0,0.00016986,2]
[391290704,1760470277480,-1870.46,0.00016986,2]
[391290705,1760470277490,-500.0,0.00016986,2]
[391290706,1760470277501,-500.0,0.00016986,2]
[391290707,1760470277511,-1228.28,0.00016986,2]
[391290708,1760470277522,-558.37,0.00016986,2]
[391290709,1760470277533,-500.0,0.00016986,2]
[391290710,1760470277546,-539.96,0.00016986,2]
[391290711,1760470277567,-1002.95,0.00016986,2]
[391290712,1760470277590,-500.0,0.00016986,2]
[391290713,1760470277604,-500.0,0.00016986,2]
[391290714,1760470277616,-688.47,0.00016986,2]
[391290715,1760470277627,-989.31,0.00016986,2]
[391290716,1760470277641,-503.21,0.00016986,2]
[391290717,1760470277652,-500.0,0.00016986,2]
[391290718,1760470277666,-1208.46,0.00016986,2]
[391290719,1760470277677,-500.0,0.00016986,2]
[391290720,1760470277688,-1347.55,0.00016986,2]
[391290721,1760470277698,-968.38,0.00016986,2]
[391290722,1760470277708,-500.0,0.00016986,2]
[391290723,1760470277719,-1432.36,0.00016986,2]
[391290724,1760470277729,-215.24512421,0.00016986,2]
[391290725,1760470277740,-550.09,0.00016986,2]
[391290726,1760470277751,-634.49,0.00016986,2]
[391290727,1760470277761,-582.07,0.00016986,2]
[391290728,1760470277772,-500.0,0.00016986,2]
[391290729,1760470277782,-392.56,0.00016986,2]
[391290730,1760470277797,-500.0,0.00016986,2]
[391290731,1760470277807,-500.0,0.00016986,2]
[391290732,1760470277817,-577.61,0.00016986,2]
[391290733,1760470277827,-666.69,0.00016986,2]
[391290734,1760470277837,-599.86,0.00016986,2]
[391290735,1760470277847,-500.0,0.00016986,2]
[391290736,1760470277858,-559.69,0.00016986,2]
[391290737,1760470277869,-500.0,0.00016986,2]
[391290738,1760470277879,-1546.65,0.00016986,2]
[391290739,1760470277890,-590.69,0.00016986,2]
[391290740,1760470277899,-1017.67,0.00016986,2]
[391290741,1760470277910,-500.0,0.00016986,2]
[391290742,1760470277921,-1405.19,0.00016986,2]
[391290743,1760470277931,-500.0,0.00016986,2]
[391290744,1760470277941,-500.0,0.00016986,2]
[391290745,1760470277951,-1481.46,0.00016986,2]
[391290746,1760470277961,-500.0,0.00016986,2]
[391290747,1760470277971,-1493.35,0.00016986,2]
[391290748,1760470277980,-1863.88,0.00016986,2]
[391290749,1760470277994,-500.0,0.00016986,2]
[391290750,1760470278004,-1165.81,0.00016986,2]
[391290751,1760470278014,-615.04,0.00016986,2]
[391290752,1760470278025,-500.0,0.00016986,2]
[391290753,1760470278035,-500.0,0.00016986,2]
[391290754,1760470278046,-500.0,0.00016986,2]
[391290755,1760470278057,-500.0,0.00016986,2]
[391290756,1760470278068,-500.0,0.00016986,2]
[391290757,1760470278079,-500.0,0.00016986,2]
[391290758,1760470278090,-845.77,0.00016986,2]
[391290759,1760470278100,-500.0,0.00016986,2]
[391290760,1760470278111,-500.0,0.00016986,2]
[391290761,1760470278122,-500.0,0.00016986,2]
[391290762,1760470278133,-995.12,0.00016986,2]
[391290763,1760470278143,-500.0,0.00016986,2]
[391290764,1760470278154,-500.0,0.00016986,2]
[391290765,1760470278164,-500.0,0.00016986,2]
[391290766,1760470278175,-666.9,0.00016986,2]
[391290767,1760470278185,-500.0,0.00016986,2]
[391290768,1760470278199,-500.0,0.00016986,2]
[391290769,1760470278210,-500.0,0.00016986,2]
[391290770,1760470278222,-500.0,0.00016986,2]
[391290771,1760470278232,-500.0,0.00016986,2]
[391290772,1760470278243,-500.0,0.00016986,2]
[391290773,1760470278253,-630.12,0.00016986,2]
[391290774,1760470278263,-500.0,0.00016986,2]
[391290775,1760470278274,-500.0,0.00016986,2]
[391290776,1760470278285,-702.68,0.00016986,2]
[391290777,1760470278295,-1045.02,0.00016986,2]
[391290778,1760470278305,-500.0,0.00016986,2]
[391290779,1760470278315,-500.0,0.00016986,2]
[391290780,1760470278325,-500.0,0.00016986,2]
[391290781,1760470278335,-500.0,0.00016986,2]
[391290782,1760470278345,-500.0,0.00016986,2]
[391290783,1760470278355,-500.0,0.00016986,2]
[391290784,1760470278364,-500.0,0.00016986,2]
[391290785,1760470278377,-500.0,0.00016986,2]
[391290786,1760470278390,-500.0,0.00016986,2]
[391290787,1760470278403,-500.0,0.00016986,2]
[391290788,1760470278413,-500.0,0.00016986,2]
[391290789,1760470278423,-500.0,0.00016986,2]
[391290790,1760470278434,-976.98,0.00016986,2]
[391290791,1760470278443,-500.0,0.00016986,2]
[391290792,1760470278455,-500.0,0.00016986,2]
[391290793,1760470278466,-500.0,0.00016986,2]
[391290794,1760470278475,-500.0,0.00016986,2]
[391290795,1760470278485,-500.0,0.00016986,2]
[391290796,1760470278495,-500.0,0.00016986,2]
[391290797,1760470278504,-500.0,0.00016986,2]
[391290798,1760470278514,-500.0,0.00016986,2]
[391290799,1760470278523,-530.32,0.00016986,2]
[391290800,1760470278533,-500.0,0.00016986,2]
[391290801,1760470278543,-884.86,0.00016986,2]
[391290802,1760470278552,-500.0,0.00016986,2]
[391290803,1760470278716,-500.0,0.00016986,2]
[391290804,1760470278725,-500.0,0.00016986,2]
[391290805,1760470278735,-500.0,0.00016986,2]
[391290806,1760470278753,-167.27110136,0.00016986,2]
[391290807,1760470278763,-1661.53,0.00016986,2]
[391290808,1760470278771,-500.0,0.00016986,2]
[391290809,1760470278781,-500.0,0.00016986,2]
[391290810,1760470278790,-1079.56,0.00016986,2]
[391290811,1760470278799,-500.0,0.00016986,2]
[391290812,1760470278808,-500.0,0.00016986,2]
[391290813,1760470278817,-500.0,0.00016986,2]
[391290814,1760470278826,-500.0,0.00016986,2]
[391290815,1760470278835,-500.0,0.00016986,2]
[391290816,1760470278844,-500.0,0.00016986,2]
[391290817,1760470278853,-500.0,0.00016986,2]
[391290818,1760470278862,-713.93,0.00016986,2]
[391290819,1760470278873,-863.39,0.00016986,2]
[391290820,1760470278882,-632.8,0.00016986,2]
[391290821,1760470278892,-500.0,0.00016986,2]
[391290822,1760470278901,-500.0,0.00016986,2]
[391290823,1760470278910,-581.24,0.00016986,2]
[391290824,1760470278920,-518.80067106,0.00016986,2]
[391290825,1760470278928,-500.0,0.00016986,2]
[391290826,1760470278938,-622.91,0.00016986,2]
[391290827,1760470278947,-500.0,0.00016986,2]
[391290828,1760470278956,-699.63,0.00016986,2]
[391290829,1760470278965,-302.26,0.00016986,2]
[391290830,1760470278974,-860.05,0.00016986,2]
[391290831,1760470278983,-500.0,0.00016986,2]
[391290832,1760470278992,-500.0,0.00016986,2]
[391290833,1760470279001,-535.38,0.00016986,2]